[Event "Titled Tuesday Blitz March 08 Early 2022"]
[White "Madaminov, Mukhiddin"]
[Black "Chigaev, Maksim"]
[WhiteFideId "14210703"]
[BlackFideId "4108116"]
[WhiteElo "1916"]
[BlackElo "2502"]
[Result "0-1"]
[Round "02"]
[TimeControl "180+1"]
[Date "2022.03.08"]
[WhiteClock "0:00:01"]
[BlackClock "0:00:07"]

1. d4 {[%clk 0:03:00]}  Nf6 {[%clk 0:02:59]} 2. Nc3 {[%clk 0:03:01]}  e6 {[%clk 0:02:57]} 3. Bf4 {[%clk 0:02:56]}  a6 {[%clk 0:02:52]} 4. e3 {[%clk 0:02:54]}  b5 {[%clk 0:02:47]} 5. Nf3 {[%clk 0:02:39]}  Bb7 {[%clk 0:02:47]} 6. Bd3 {[%clk 0:02:40]}  d6 {[%clk 0:02:45]} 7. a3 {[%clk 0:02:39]}  h6 {[%clk 0:02:44]} 8. e4 {[%clk 0:02:37]}  Nbd7 {[%clk 0:02:41]} 9. Qe2 {[%clk 0:02:35]}  c5 {[%clk 0:02:28]} 10. dxc5 {[%clk 0:02:20]}  Nxc5 {[%clk 0:02:29]} 11. O-O {[%clk 0:02:18]}  e5 {[%clk 0:02:22]} 12. Be3 {[%clk 0:02:12]}  Rc8 {[%clk 0:02:15]} 13. Rad1 {[%clk 0:02:10]}  Qc7 {[%clk 0:02:06]} 14. Nh4 {[%clk 0:02:02]}  Ncxe4 {[%clk 0:01:44]} 15. Nxe4 {[%clk 0:01:59]}  Nxe4 {[%clk 0:01:41]} 16. f4 {[%clk 0:01:56]}  d5 {[%clk 0:01:32]} 17. fxe5 {[%clk 0:01:47]}  Qxe5 {[%clk 0:01:32]} 18. Nf5 {[%clk 0:01:40]}  g6 {[%clk 0:00:59]} 19. Bxe4 {[%clk 0:00:30]}  dxe4 {[%clk 0:00:33]} 20. Qd2 {[%clk 0:00:27]}  Bc6 {[%clk 0:00:33]} 21. Bd4 {[%clk 0:00:19]}  Bc5 {[%clk 0:00:33]} 22. Bxc5 {[%clk 0:00:03]}  Qxc5+ {[%clk 0:00:34]} 23. Nd4 {[%clk 0:00:03]}  Ba8 {[%clk 0:00:31]} 24. c3 {[%clk 0:00:04]}  Qg5 {[%clk 0:00:26]} 25. Qf2 {[%clk 0:00:03]}  O-O {[%clk 0:00:26]} 26. Rde1 {[%clk 0:00:04]}  a5 {[%clk 0:00:22]} 27. Re3 {[%clk 0:00:04]}  Rce8 {[%clk 0:00:20]} 28. Rg3 {[%clk 0:00:04]}  e3 {[%clk 0:00:21]} 29. Qe2 {[%clk 0:00:02]}  Qe5 {[%clk 0:00:18]} 30. Re1 {[%clk 0:00:02]}  Qd5 {[%clk 0:00:12]} 31. Rf1 {[%clk 0:00:01]}  b4 {[%clk 0:00:11]} 32. axb4 {[%clk 0:00:01]}  axb4 {[%clk 0:00:11]} 33. Rd1 {[%clk 0:00:01]}  bxc3 {[%clk 0:00:11]} 34. bxc3 {[%clk 0:00:02]}  Qe4 {[%clk 0:00:08]} 35. Re1 {[%clk 0:00:02]}  Qb7 {[%clk 0:00:08]} 36. Rf1 {[%clk 0:00:02]}  Re5 {[%clk 0:00:07]} 37. Qc4 {[%clk 0:00:02]}  Rg5 {[%clk 0:00:06]} 38. Qe2 {[%clk 0:00:01]}  Rxg3 {[%clk 0:00:06]} 39. hxg3 {[%clk 0:00:02]}  Re8 {[%clk 0:00:07]} 40. Rf3 {[%clk 0:00:02]}  Qd5 {[%clk 0:00:07]} 41. Kh2 {[%clk 0:00:02]}  Bb7 {[%clk 0:00:07]} 42. Kg1 {[%clk 0:00:03]}  h5 {[%clk 0:00:07]} 43. Rf4 {[%clk 0:00:02]}  Qe5 {[%clk 0:00:07]} 44. Nf3 {[%clk 0:00:01]}  Qxc3 {[%clk 0:00:07]} 45. Rc4 {[%clk 0:00:01]}  Qa1+ {[%clk 0:00:07]} 46. Kh2 {[%clk 0:00:01]}  Ba6 {[%clk 0:00:07]} 0-1


[Site "https://www.chess.com"]

[Event "Titled Tuesday Blitz March 08 Early 2022"]
[White "Maevsky, Nikolay"]
[Black "Nguyen, Thi Minh Oanh"]
[WhiteFideId "4198220"]
[BlackFideId "12404080"]
[WhiteElo "2126"]
[BlackElo "1825"]
[Result "1-0"]
[Round "02"]
[TimeControl "180+1"]
[Date "2022.03.09"]
[WhiteClock "0:00:05"]
[BlackClock "0:00:02"]

1. d4 {[%clk 0:02:48]}  d5 {[%clk 0:02:59]} 2. Nf3 {[%clk 0:02:48]}  Nf6 {[%clk 0:02:59]} 3. e3 {[%clk 0:02:49]}  Bg4 {[%clk 0:02:57]} 4. Nbd2 {[%clk 0:02:49]}  c6 {[%clk 0:02:56]} 5. h3 {[%clk 0:02:49]}  Bh5 {[%clk 0:02:56]} 6. g4 {[%clk 0:02:49]}  Bg6 {[%clk 0:02:56]} 7. Ne5 {[%clk 0:02:49]}  Nbd7 {[%clk 0:02:52]} 8. h4 {[%clk 0:02:49]}  Be4 {[%clk 0:01:45]} 9. f3 {[%clk 0:02:41]}  Nxe5 {[%clk 0:01:44]} 10. dxe5 {[%clk 0:02:28]}  Nxg4 {[%clk 0:01:44]} 11. Nxe4 {[%clk 0:02:17]}  Nxe5 {[%clk 0:01:43]} 12. Ng3 {[%clk 0:02:09]}  e6 {[%clk 0:01:42]} 13. f4 {[%clk 0:02:04]}  Nd7 {[%clk 0:01:42]} 14. Bd2 {[%clk 0:01:57]}  Qb6 {[%clk 0:01:42]} 15. h5 {[%clk 0:01:47]}  Bc5 {[%clk 0:01:38]} 16. Qc1 {[%clk 0:01:41]}  h6 {[%clk 0:01:36]} 17. a3 {[%clk 0:01:39]}  a5 {[%clk 0:01:31]} 18. c4 {[%clk 0:01:32]}  Nf6 {[%clk 0:01:29]} 19. Be2 {[%clk 0:01:29]}  dxc4 {[%clk 0:01:25]} 20. Bxc4 {[%clk 0:01:12]}  O-O-O {[%clk 0:01:25]} 21. Qc3 {[%clk 0:01:05]}  Rxd2 {[%clk 0:00:59]} 22. Kxd2 {[%clk 0:01:03]}  Bxe3+ {[%clk 0:00:59]} 23. Kc2 {[%clk 0:00:57]}  Bxf4 {[%clk 0:00:33]} 24. Raf1 {[%clk 0:00:50]}  Be3 {[%clk 0:00:31]} 25. Kb1 {[%clk 0:00:43]}  Bd4 {[%clk 0:00:27]} 26. Qc2 {[%clk 0:00:42]}  Rd8 {[%clk 0:00:25]} 27. Ne2 {[%clk 0:00:38]}  Be5 {[%clk 0:00:24]} 28. Rd1 {[%clk 0:00:35]}  Re8 {[%clk 0:00:22]} 29. Rhf1 {[%clk 0:00:32]}  Ng4 {[%clk 0:00:20]} 30. Rxf7 {[%clk 0:00:20]}  Ne3 {[%clk 0:00:19]} 31. Qb3 {[%clk 0:00:20]}  Nxc4 {[%clk 0:00:14]} 32. Qxb6 {[%clk 0:00:17]}  Nxb6 {[%clk 0:00:15]} 33. b3 {[%clk 0:00:15]}  Nd5 {[%clk 0:00:15]} 34. Kc2 {[%clk 0:00:15]}  Re7 {[%clk 0:00:14]} 35. Rxe7 {[%clk 0:00:14]}  Nxe7 {[%clk 0:00:15]} 36. Kd3 {[%clk 0:00:14]}  Kc7 {[%clk 0:00:15]} 37. Ke4 {[%clk 0:00:14]}  Bf6 {[%clk 0:00:16]} 38. Nf4 {[%clk 0:00:13]}  e5 {[%clk 0:00:15]} 39. Ne6+ {[%clk 0:00:13]}  Kb6 {[%clk 0:00:16]} 40. Rd7 {[%clk 0:00:13]}  g6 {[%clk 0:00:08]} 41. hxg6 {[%clk 0:00:11]}  Nxg6 {[%clk 0:00:08]} 42. Kf5 {[%clk 0:00:11]}  e4 {[%clk 0:00:03]} 43. Kxg6 {[%clk 0:00:08]}  Bb2 {[%clk 0:00:03]} 44. a4 {[%clk 0:00:06]}  e3 {[%clk 0:00:02]} 45. Nf4 {[%clk 0:00:05]} 1-0


[Site "https://www.chess.com"]

[Event "Titled Tuesday Blitz March 08 Early 2022"]
[White "Makarian, Rudik"]
[Black "Martin Duque, Jesus"]
[WhiteFideId "44105681"]
[BlackFideId "2208954"]
[WhiteElo "2388"]
[BlackElo "2243"]
[Result "0-1"]
[Round "02"]
[TimeControl "180+1"]
[Date "2022.03.08"]
[WhiteClock "0:01:11"]
[BlackClock "0:01:55"]

1. e4 {[%clk 0:03:00]}  c5 {[%clk 0:02:59]} 2. Nf3 {[%clk 0:03:00]}  e6 {[%clk 0:03:00]} 3. g3 {[%clk 0:03:00]}  b6 {[%clk 0:02:59]} 4. Bg2 {[%clk 0:02:58]}  Bb7 {[%clk 0:03:00]} 5. Qe2 {[%clk 0:02:59]}  d6 {[%clk 0:02:59]} 6. O-O {[%clk 0:02:59]}  Nd7 {[%clk 0:03:00]} 7. d4 {[%clk 0:02:58]}  cxd4 {[%clk 0:02:59]} 8. Nxd4 {[%clk 0:02:59]}  Be7 {[%clk 0:02:58]} 9. c4 {[%clk 0:02:59]}  a6 {[%clk 0:02:56]} 10. b3 {[%clk 0:03:00]}  Rc8 {[%clk 0:02:56]} 11. Bb2 {[%clk 0:03:00]}  Qc7 {[%clk 0:02:56]} 12. Nc3 {[%clk 0:02:58]}  Ngf6 {[%clk 0:02:56]} 13. Rfd1 {[%clk 0:02:58]}  h5 {[%clk 0:02:56]} 14. h3 {[%clk 0:02:56]}  Qb8 {[%clk 0:02:56]} 15. Rac1 {[%clk 0:02:55]}  Ne5 {[%clk 0:02:56]} 16. f4 {[%clk 0:02:52]}  Ng6 {[%clk 0:02:56]} 17. f5 {[%clk 0:02:50]}  Nf8 {[%clk 0:02:50]} 18. Nd5 {[%clk 0:02:47]}  exd5 {[%clk 0:02:43]} 19. exd5 {[%clk 0:02:48]}  N8d7 {[%clk 0:02:40]} 20. Nc6 {[%clk 0:02:33]}  Bxc6 {[%clk 0:02:40]} 21. dxc6 {[%clk 0:02:34]}  Ne5 {[%clk 0:02:40]} 22. Re1 {[%clk 0:02:29]}  O-O {[%clk 0:02:40]} 23. b4 {[%clk 0:02:19]}  b5 {[%clk 0:02:30]} 24. c5 {[%clk 0:02:18]}  Nxc6 {[%clk 0:02:22]} 25. Bxc6 {[%clk 0:02:16]}  Rxc6 {[%clk 0:02:23]} 26. Qxe7 {[%clk 0:02:14]}  Re8 {[%clk 0:02:22]} 27. Bxf6 {[%clk 0:02:08]}  Rxe7 {[%clk 0:02:22]} 28. Bxe7 {[%clk 0:02:09]}  dxc5 {[%clk 0:02:21]} 29. Kg2 {[%clk 0:02:09]}  c4 {[%clk 0:02:20]} 30. f6 {[%clk 0:02:09]}  gxf6 {[%clk 0:02:20]} 31. Bc5 {[%clk 0:02:07]}  Kg7 {[%clk 0:02:19]} 32. Rf1 {[%clk 0:02:06]}  a5 {[%clk 0:02:18]} 33. Rf4 {[%clk 0:02:00]}  Qa8 {[%clk 0:02:16]} 34. Kg1 {[%clk 0:01:51]}  axb4 {[%clk 0:02:15]} 35. Bxb4 {[%clk 0:01:48]}  Qxa2 {[%clk 0:02:15]} 36. Rcf1 {[%clk 0:01:46]}  Qb3 {[%clk 0:02:12]} 37. Ba5 {[%clk 0:01:42]}  b4 {[%clk 0:02:11]} 38. Bd8 {[%clk 0:01:41]}  c3 {[%clk 0:02:07]} 39. Bxf6+ {[%clk 0:01:40]}  Kg6 {[%clk 0:02:03]} 40. g4 {[%clk 0:01:26]}  c2 {[%clk 0:02:01]} 41. gxh5+ {[%clk 0:01:26]}  Kh7 {[%clk 0:02:01]} 42. Bg5 {[%clk 0:01:18]}  Qg3+ {[%clk 0:02:00]} 43. Kh1 {[%clk 0:01:17]}  Qxh3+ {[%clk 0:02:00]} 44. Kg1 {[%clk 0:01:17]}  Qg3+ {[%clk 0:01:58]} 45. Kh1 {[%clk 0:01:17]}  Qxg5 {[%clk 0:01:58]} 46. Rxf7+ {[%clk 0:01:18]}  Kh6 {[%clk 0:01:58]} 47. Rf8 {[%clk 0:01:19]}  c1=Q {[%clk 0:01:57]} 48. Kh2 {[%clk 0:01:15]}  Rc2+ {[%clk 0:01:56]} 49. R1f2 {[%clk 0:01:11]}  Rxf2+ {[%clk 0:01:55]} 0-1


[Site "https://www.chess.com"]

[Event "Titled Tuesday Blitz March 08 Early 2022"]
[White "Manukyan, Sargis A."]
[Black "Weetik, Vjacheslav"]
[WhiteFideId "13303970"]
[BlackFideId "4153472"]
[WhiteElo "2187"]
[BlackElo "2469"]
[Result "0-1"]
[Round "02"]
[TimeControl "180+1"]
[Date "2022.03.09"]
[WhiteClock "0:00:05"]
[BlackClock "0:00:05"]

1. d4 {[%clk 0:03:00]}  Nf6 {[%clk 0:02:59]} 2. c4 {[%clk 0:03:00]}  g6 {[%clk 0:02:59]} 3. Nc3 {[%clk 0:02:57]}  Bg7 {[%clk 0:03:00]} 4. Nf3 {[%clk 0:02:53]}  O-O {[%clk 0:03:00]} 5. h3 {[%clk 0:02:53]}  d5 {[%clk 0:02:57]} 6. Bf4 {[%clk 0:02:52]}  c5 {[%clk 0:02:57]} 7. dxc5 {[%clk 0:02:50]}  Qa5 {[%clk 0:02:54]} 8. cxd5 {[%clk 0:02:47]}  Nxd5 {[%clk 0:02:50]} 9. Qxd5 {[%clk 0:02:44]}  Bxc3+ {[%clk 0:02:50]} 10. Bd2 {[%clk 0:02:43]}  Bxd2+ {[%clk 0:02:49]} 11. Qxd2 {[%clk 0:02:41]}  Qxc5 {[%clk 0:02:49]} 12. Rc1 {[%clk 0:02:39]}  Qb6 {[%clk 0:02:49]} 13. e3 {[%clk 0:02:36]}  Nc6 {[%clk 0:02:49]} 14. Be2 {[%clk 0:02:35]}  Rd8 {[%clk 0:02:49]} 15. Qc3 {[%clk 0:02:35]}  Be6 {[%clk 0:02:45]} 16. b3 {[%clk 0:02:18]}  Rd6 {[%clk 0:02:39]} 17. O-O {[%clk 0:02:18]}  Rad8 {[%clk 0:02:39]} 18. Rfd1 {[%clk 0:02:16]}  Rxd1+ {[%clk 0:02:30]} 19. Rxd1 {[%clk 0:02:17]}  Rxd1+ {[%clk 0:02:30]} 20. Bxd1 {[%clk 0:02:18]}  Qb4 {[%clk 0:02:28]} 21. Qb2 {[%clk 0:02:10]}  Bd5 {[%clk 0:02:22]} 22. Nd2 {[%clk 0:02:06]}  a5 {[%clk 0:02:18]} 23. a3 {[%clk 0:01:59]}  Qc5 {[%clk 0:02:17]} 24. Be2 {[%clk 0:01:47]}  e5 {[%clk 0:02:07]} 25. h4 {[%clk 0:01:46]}  Kg7 {[%clk 0:02:01]} 26. h5 {[%clk 0:01:39]}  f6 {[%clk 0:02:01]} 27. hxg6 {[%clk 0:01:38]}  hxg6 {[%clk 0:02:01]} 28. Bc4 {[%clk 0:01:35]}  b5 {[%clk 0:01:57]} 29. Bxd5 {[%clk 0:01:33]}  Qxd5 {[%clk 0:01:58]} 30. Qc3 {[%clk 0:01:27]}  Kf7 {[%clk 0:01:51]} 31. f3 {[%clk 0:01:16]}  Ke6 {[%clk 0:01:48]} 32. Kf2 {[%clk 0:01:16]}  f5 {[%clk 0:01:46]} 33. Ke2 {[%clk 0:01:09]}  b4 {[%clk 0:01:31]} 34. axb4 {[%clk 0:01:05]}  axb4 {[%clk 0:01:31]} 35. Qc2 {[%clk 0:01:05]}  Kd7 {[%clk 0:01:13]} 36. Qa2 {[%clk 0:00:47]}  Ke6 {[%clk 0:00:33]} 37. Qc2 {[%clk 0:00:46]}  Kd7 {[%clk 0:00:24]} 38. Nc4 {[%clk 0:00:46]}  Ke6 {[%clk 0:00:24]} 39. g4 {[%clk 0:00:44]}  e4 {[%clk 0:00:20]} 40. gxf5+ {[%clk 0:00:42]}  gxf5 {[%clk 0:00:20]} 41. f4 {[%clk 0:00:41]}  Ne7 {[%clk 0:00:13]} 42. Qa2 {[%clk 0:00:37]}  Qd3+ {[%clk 0:00:13]} 43. Kf2 {[%clk 0:00:36]}  Qd5 {[%clk 0:00:11]} 44. Qa6+ {[%clk 0:00:35]}  Qc6 {[%clk 0:00:12]} 45. Qa5 {[%clk 0:00:33]}  Nd5 {[%clk 0:00:12]} 46. Qd8 {[%clk 0:00:31]}  Qd7 {[%clk 0:00:10]} 47. Qg8+ {[%clk 0:00:26]}  Qf7 {[%clk 0:00:07]} 48. Qc8+ {[%clk 0:00:24]}  Qd7 {[%clk 0:00:08]} 49. Qa6+ {[%clk 0:00:25]}  Ke7 {[%clk 0:00:06]} 50. Ne5 {[%clk 0:00:20]}  Qc7 {[%clk 0:00:06]} 51. Ng6+ {[%clk 0:00:18]}  Kf7 {[%clk 0:00:04]} 52. Ne5+ {[%clk 0:00:18]}  Ke7 {[%clk 0:00:04]} 53. Nc4 {[%clk 0:00:16]}  Qc5 {[%clk 0:00:04]} 54. Qh6 {[%clk 0:00:15]}  Nf6 {[%clk 0:00:04]} 55. Qg7+ {[%clk 0:00:15]}  Ke6 {[%clk 0:00:04]} 56. Ke2 {[%clk 0:00:09]}  Qd5 {[%clk 0:00:04]} 57. Qb7 {[%clk 0:00:06]}  Qxb7 {[%clk 0:00:04]} 58. Ne5 {[%clk 0:00:05]}  Qd5 {[%clk 0:00:03]} 59. Nc4 {[%clk 0:00:04]}  Qd3+ {[%clk 0:00:04]} 60. Kf2 {[%clk 0:00:05]}  Qxb3 {[%clk 0:00:05]} 0-1


[Site "https://www.chess.com"]

[Event "Titled Tuesday Blitz March 08 Early 2022"]
[White "Maung, Maung Kyaw Zaw Hein"]
[Black "Estrada Nieto, Julian"]
[WhiteFideId "13001698"]
[BlackFideId "5101018"]
[WhiteElo "1785"]
[BlackElo "2246"]
[Result "0-1"]
[Round "02"]
[TimeControl "180+1"]
[Date "2022.03.09"]
[WhiteClock "0:01:59"]
[BlackClock "0:02:11"]

1. Nf3 {[%clk 0:02:59]}  d5 {[%clk 0:03:00]} 2. d4 {[%clk 0:02:59]}  Nf6 {[%clk 0:02:59]} 3. c4 {[%clk 0:03:00]}  dxc4 {[%clk 0:02:59]} 4. Nc3 {[%clk 0:02:59]}  a6 {[%clk 0:02:53]} 5. a4 {[%clk 0:02:58]}  Nc6 {[%clk 0:02:49]} 6. e4 {[%clk 0:02:54]}  Bg4 {[%clk 0:02:41]} 7. Be3 {[%clk 0:02:53]}  e6 {[%clk 0:02:39]} 8. Bxc4 {[%clk 0:02:52]}  Bb4 {[%clk 0:02:40]} 9. e5 {[%clk 0:02:36]}  Nd5 {[%clk 0:02:39]} 10. Bxd5 {[%clk 0:02:25]}  Qxd5 {[%clk 0:02:38]} 11. O-O {[%clk 0:02:23]}  Bxc3 {[%clk 0:02:31]} 12. bxc3 {[%clk 0:02:23]}  Bxf3 {[%clk 0:02:31]} 13. gxf3 {[%clk 0:02:19]}  Na5 {[%clk 0:02:28]} 14. Qd3 {[%clk 0:02:11]}  O-O {[%clk 0:02:26]} 15. Rab1 {[%clk 0:02:07]}  Nc4 {[%clk 0:02:18]} 16. Rb4 {[%clk 0:02:02]}  Nxe5 {[%clk 0:02:17]} 17. Qe4 {[%clk 0:01:59]}  Nxf3+ {[%clk 0:02:11]} 0-1


[Site "https://www.chess.com"]

[Event "Titled Tuesday Blitz March 08 Early 2022"]
[White "Mekhitarian, Krikor Sevag"]
[Black "Kim, Sergey"]
[WhiteFideId "2107660"]
[BlackFideId "13700570"]
[WhiteElo "2598"]
[BlackElo "2559"]
[Result "1-0"]
[Round "02"]
[TimeControl "180+1"]
[Date "2022.03.09"]
[WhiteClock "0:00:06"]
[BlackClock "0:00:35"]

1. e4 {[%clk 0:03:00]}  e5 {[%clk 0:02:58]} 2. Nf3 {[%clk 0:03:00]}  Nc6 {[%clk 0:02:58]} 3. Bc4 {[%clk 0:03:00]}  Bc5 {[%clk 0:02:57]} 4. c3 {[%clk 0:03:00]}  Nf6 {[%clk 0:02:57]} 5. d4 {[%clk 0:03:00]}  exd4 {[%clk 0:02:56]} 6. cxd4 {[%clk 0:03:01]}  Bb4+ {[%clk 0:02:56]} 7. Nbd2 {[%clk 0:03:01]}  d5 {[%clk 0:02:42]} 8. exd5 {[%clk 0:02:57]}  Nxd5 {[%clk 0:02:43]} 9. O-O {[%clk 0:02:39]}  O-O {[%clk 0:02:42]} 10. Ne4 {[%clk 0:02:35]}  Bg4 {[%clk 0:02:40]} 11. h3 {[%clk 0:02:33]}  Bh5 {[%clk 0:02:39]} 12. Ng3 {[%clk 0:02:32]}  Bg6 {[%clk 0:02:39]} 13. a3 {[%clk 0:02:31]}  Be7 {[%clk 0:02:37]} 14. Ne5 {[%clk 0:02:08]}  Nxe5 {[%clk 0:02:35]} 15. dxe5 {[%clk 0:02:06]}  c6 {[%clk 0:02:28]} 16. Qe2 {[%clk 0:01:53]}  Re8 {[%clk 0:02:22]} 17. Bd2 {[%clk 0:01:50]}  Bh4 {[%clk 0:02:05]} 18. Rad1 {[%clk 0:01:44]}  Qb6 {[%clk 0:01:58]} 19. Qg4 {[%clk 0:01:28]}  Bxg3 {[%clk 0:01:54]} 20. Qxg3 {[%clk 0:01:29]}  Qxb2 {[%clk 0:01:53]} 21. Rfe1 {[%clk 0:01:16]}  Rad8 {[%clk 0:01:41]} 22. Kh2 {[%clk 0:01:15]}  Qc2 {[%clk 0:01:30]} 23. Bb3 {[%clk 0:01:05]}  Qf5 {[%clk 0:01:25]} 24. f4 {[%clk 0:01:01]}  h5 {[%clk 0:01:24]} 25. Rc1 {[%clk 0:00:58]}  Qd3 {[%clk 0:01:18]} 26. Qxd3 {[%clk 0:00:50]}  Bxd3 {[%clk 0:01:18]} 27. g4 {[%clk 0:00:49]}  h4 {[%clk 0:01:11]} 28. f5 {[%clk 0:00:48]}  Ba6 {[%clk 0:00:59]} 29. Bg5 {[%clk 0:00:45]}  Rd7 {[%clk 0:00:57]} 30. Rcd1 {[%clk 0:00:40]}  Nb6 {[%clk 0:00:54]} 31. e6 {[%clk 0:00:21]}  fxe6 {[%clk 0:00:53]} 32. Rxe6 {[%clk 0:00:07]}  Rf8 {[%clk 0:00:36]} 33. Rxd7 {[%clk 0:00:04]}  Nxd7 {[%clk 0:00:36]} 34. Re7+ {[%clk 0:00:05]}  Kh7 {[%clk 0:00:35]} 35. Rxd7 {[%clk 0:00:06]} 1-0


[Site "https://www.chess.com"]

[Event "Titled Tuesday Blitz March 08 Early 2022"]
[White "Mirzoev, Azer"]
[Black "Li, Hui"]
[WhiteFideId "13400304"]
[BlackFideId "15400310"]
[WhiteElo "2525"]
[BlackElo "1954"]
[Result "1-0"]
[Round "02"]
[TimeControl "180+1"]
[Date "2022.03.09"]
[WhiteClock "0:01:38"]
[BlackClock "0:00:04"]

1. c4 {[%clk 0:03:00]}  e6 {[%clk 0:02:59]} 2. Nc3 {[%clk 0:02:59]}  d5 {[%clk 0:03:00]} 3. e3 {[%clk 0:03:00]}  Nf6 {[%clk 0:03:00]} 4. Nf3 {[%clk 0:02:59]}  Be7 {[%clk 0:02:59]} 5. d4 {[%clk 0:02:59]}  O-O {[%clk 0:02:58]} 6. b3 {[%clk 0:02:59]}  c5 {[%clk 0:02:51]} 7. Bb2 {[%clk 0:02:58]}  b6 {[%clk 0:02:48]} 8. cxd5 {[%clk 0:02:58]}  exd5 {[%clk 0:02:39]} 9. Bd3 {[%clk 0:02:52]}  Bb7 {[%clk 0:02:37]} 10. O-O {[%clk 0:02:51]}  Nbd7 {[%clk 0:02:37]} 11. Qe2 {[%clk 0:02:50]}  Re8 {[%clk 0:02:37]} 12. Ba6 {[%clk 0:02:48]}  Qc8 {[%clk 0:02:28]} 13. Bxb7 {[%clk 0:02:47]}  Qxb7 {[%clk 0:02:29]} 14. Rfd1 {[%clk 0:02:47]}  Rad8 {[%clk 0:02:16]} 15. dxc5 {[%clk 0:02:47]}  Nxc5 {[%clk 0:02:09]} 16. Nb5 {[%clk 0:02:44]}  Nce4 {[%clk 0:02:01]} 17. h3 {[%clk 0:02:38]}  a6 {[%clk 0:01:57]} 18. Nbd4 {[%clk 0:02:38]}  Bf8 {[%clk 0:01:54]} 19. Rac1 {[%clk 0:02:36]}  Rc8 {[%clk 0:01:50]} 20. Rc2 {[%clk 0:02:34]}  b5 {[%clk 0:01:48]} 21. Rdc1 {[%clk 0:02:33]}  Nd6 {[%clk 0:01:36]} 22. Qd1 {[%clk 0:02:22]}  Rxc2 {[%clk 0:01:34]} 23. Rxc2 {[%clk 0:02:20]}  Rc8 {[%clk 0:01:34]} 24. Rxc8 {[%clk 0:02:19]}  Qxc8 {[%clk 0:01:31]} 25. Nc2 {[%clk 0:02:19]}  Nde4 {[%clk 0:01:26]} 26. Qd3 {[%clk 0:02:18]}  Be7 {[%clk 0:01:12]} 27. Ncd4 {[%clk 0:02:16]}  Bb4 {[%clk 0:01:01]} 28. Qc2 {[%clk 0:02:10]}  Qxc2 {[%clk 0:00:57]} 29. Nxc2 {[%clk 0:02:11]}  Bc3 {[%clk 0:00:53]} 30. Ba3 {[%clk 0:02:09]}  h6 {[%clk 0:00:37]} 31. Kf1 {[%clk 0:02:08]}  Nd2+ {[%clk 0:00:36]} 32. Nxd2 {[%clk 0:02:07]}  Bxd2 {[%clk 0:00:37]} 33. Ke2 {[%clk 0:02:07]}  Bc3 {[%clk 0:00:33]} 34. Kd3 {[%clk 0:02:01]}  Be5 {[%clk 0:00:33]} 35. Bb4 {[%clk 0:01:59]}  Ne4 {[%clk 0:00:27]} 36. f3 {[%clk 0:01:57]}  Nf6 {[%clk 0:00:22]} 37. Bc3 {[%clk 0:01:54]}  Bxc3 {[%clk 0:00:16]} 38. Kxc3 {[%clk 0:01:55]}  Kf8 {[%clk 0:00:16]} 39. Nb4 {[%clk 0:01:54]}  a5 {[%clk 0:00:14]} 40. Nc6 {[%clk 0:01:54]}  a4 {[%clk 0:00:12]} 41. bxa4 {[%clk 0:01:52]}  bxa4 {[%clk 0:00:13]} 42. Kb4 {[%clk 0:01:52]}  Ke8 {[%clk 0:00:13]} 43. Kxa4 {[%clk 0:01:50]}  Kd7 {[%clk 0:00:13]} 44. Nd4 {[%clk 0:01:49]}  Kd6 {[%clk 0:00:13]} 45. Kb4 {[%clk 0:01:49]}  Nd7 {[%clk 0:00:11]} 46. Nf5+ {[%clk 0:01:43]}  Kc6 {[%clk 0:00:09]} 47. Nxg7 {[%clk 0:01:42]}  Ne5 {[%clk 0:00:10]} 48. Kc3 {[%clk 0:01:40]}  Nc4 {[%clk 0:00:06]} 49. Nf5 {[%clk 0:01:39]}  h5 {[%clk 0:00:05]} 50. g4 {[%clk 0:01:38]}  hxg4 {[%clk 0:00:04]} 51. fxg4 {[%clk 0:01:39]}  Ne5 {[%clk 0:00:04]} 52. a4 {[%clk 0:01:38]}  Kb6 {[%clk 0:00:04]} 53. Kd4 {[%clk 0:01:38]}  Nf3+ {[%clk 0:00:04]} 54. Kxd5 {[%clk 0:01:38]} 1-0


[Site "https://www.chess.com"]

[Event "Titled Tuesday Blitz March 08 Early 2022"]
[White "Mitusov, Semen"]
[Black "Kobalia, Mikhail"]
[WhiteFideId "14151049"]
[BlackFideId "4119150"]
[WhiteElo "2265"]
[BlackElo "2667"]
[Result "1-0"]
[Round "02"]
[TimeControl "180+1"]
[Date "2022.03.08"]
[WhiteClock "0:00:07"]
[BlackClock "0:00:01"]

1. e4 {[%clk 0:03:00]}  c6 {[%clk 0:02:59]} 2. d4 {[%clk 0:02:59]}  d5 {[%clk 0:03:00]} 3. e5 {[%clk 0:03:00]}  Bf5 {[%clk 0:02:59]} 4. h4 {[%clk 0:02:59]}  h5 {[%clk 0:02:59]} 5. Bg5 {[%clk 0:02:58]}  Qa5+ {[%clk 0:02:56]} 6. Nd2 {[%clk 0:02:46]}  e6 {[%clk 0:02:56]} 7. Ne2 {[%clk 0:02:38]}  c5 {[%clk 0:02:55]} 8. Ng3 {[%clk 0:02:35]}  Bg6 {[%clk 0:02:53]} 9. c3 {[%clk 0:02:30]}  cxd4 {[%clk 0:02:53]} 10. cxd4 {[%clk 0:02:30]}  Nc6 {[%clk 0:02:52]} 11. Be3 {[%clk 0:02:06]}  Nb4 {[%clk 0:02:51]} 12. Rc1 {[%clk 0:01:57]}  Ne7 {[%clk 0:02:33]} 13. a3 {[%clk 0:01:57]}  Nd3+ {[%clk 0:02:31]} 14. Bxd3 {[%clk 0:01:56]}  Bxd3 {[%clk 0:02:32]} 15. Rc3 {[%clk 0:01:48]}  Ba6 {[%clk 0:02:26]} 16. b4 {[%clk 0:01:46]}  Qb6 {[%clk 0:02:21]} 17. Nb3 {[%clk 0:01:37]}  Nf5 {[%clk 0:02:13]} 18. Nxf5 {[%clk 0:01:34]}  exf5 {[%clk 0:02:14]} 19. Nc5 {[%clk 0:01:29]}  Bxc5 {[%clk 0:02:11]} 20. Rxc5 {[%clk 0:01:21]}  Bc4 {[%clk 0:02:09]} 21. Qa4+ {[%clk 0:01:13]}  Kf8 {[%clk 0:02:06]} 22. Rh3 {[%clk 0:01:12]}  Qd8 {[%clk 0:01:13]} 23. Bg5 {[%clk 0:01:06]}  f6 {[%clk 0:01:10]} 24. exf6 {[%clk 0:01:01]}  gxf6 {[%clk 0:01:09]} 25. Bf4 {[%clk 0:01:01]}  Rh7 {[%clk 0:01:05]} 26. Re3 {[%clk 0:00:51]}  b6 {[%clk 0:00:44]} 27. Rc6 {[%clk 0:00:41]}  Kg8 {[%clk 0:00:32]} 28. Rce6 {[%clk 0:00:37]}  Rd7 {[%clk 0:00:25]} 29. Bd6 {[%clk 0:00:20]}  a5 {[%clk 0:00:17]} 30. Kd2 {[%clk 0:00:18]}  axb4 {[%clk 0:00:16]} 31. Re8+ {[%clk 0:00:18]}  Kg7 {[%clk 0:00:08]} 32. Qxa8 {[%clk 0:00:15]}  Qxa8 {[%clk 0:00:07]} 33. Rxa8 {[%clk 0:00:15]}  Rxd6 {[%clk 0:00:07]} 34. axb4 {[%clk 0:00:15]}  f4 {[%clk 0:00:07]} 35. Re7+ {[%clk 0:00:15]}  Kg6 {[%clk 0:00:08]} 36. Rg8+ {[%clk 0:00:14]}  Kf5 {[%clk 0:00:08]} 37. f3 {[%clk 0:00:11]}  Bb5 {[%clk 0:00:05]} 38. Rf8 {[%clk 0:00:09]}  Rc6 {[%clk 0:00:05]} 39. Rg7 {[%clk 0:00:05]}  Ba4 {[%clk 0:00:03]} 40. Rgf7 {[%clk 0:00:04]}  Rc2+ {[%clk 0:00:02]} 41. Kd3 {[%clk 0:00:05]}  Rc6 {[%clk 0:00:02]} 42. Rg7 {[%clk 0:00:05]}  Bb5+ {[%clk 0:00:02]} 43. Kd2 {[%clk 0:00:04]}  Ba4 {[%clk 0:00:03]} 44. Rh8 {[%clk 0:00:03]}  Rc2+ {[%clk 0:00:02]} 45. Kd3 {[%clk 0:00:04]}  Ra2 {[%clk 0:00:02]} 46. Rxh5+ {[%clk 0:00:04]}  Ke6 {[%clk 0:00:02]} 47. Rh6 {[%clk 0:00:05]}  Bb5+ {[%clk 0:00:02]} 48. Kc3 {[%clk 0:00:05]}  Ra3+ {[%clk 0:00:02]} 49. Kb2 {[%clk 0:00:05]}  Rd3 {[%clk 0:00:03]} 50. Rgg6 {[%clk 0:00:06]}  Rxd4 {[%clk 0:00:03]} 51. Rxf6+ {[%clk 0:00:06]}  Ke7 {[%clk 0:00:02]} 52. Rxb6 {[%clk 0:00:07]}  Ba4 {[%clk 0:00:01]} 53. Rb7+ {[%clk 0:00:07]} 1-0


[Site "https://www.chess.com"]